[Event "Marienbad Open-A1 2019"]
[Site "Marianske Lazne"]
[Date "2019.01.24"]
[Round "7"]
[White "Oboladze, Luka"]
[Black "Plat, Vojtech"]
[Result "1/2-1/2"]
[ECO "D07"]
[WhiteElo "2295"]
[BlackElo "2552"]
[Annotator "ChessBase"]
[PlyCount "109"]
[EventDate "2019.01.17"]
[EventType "tourn"]
[EventCountry "CZE"]
[SourceTitle "playchess.com"]
[Source "ChessBase"]
[SourceQuality "1"]
[TimeControl "40/5400+30:1800+30"]

1. d4 {[%emt 0:00:00]} d5 {[%emt 0:05:41]} 2. c4 {[%emt 0:00:00]} Nc6 {[%emt 0:00:06]} 3. Nf3 {[%emt 0:00:13]} Bg4 {[%emt 0:00:04]} 4. cxd5 {[%emt 0:00:31]} Bxf3 {[%emt 0:00:05]} 5. gxf3 {[%emt 0:00:02]} Qxd5 {[%emt 0:00:30]} 6. e3 {[%emt 0:00:05]} e5 {[%emt 0:00:00]} 7. Nc3 {[%emt 0:00:44]} Bb4 {[%emt 0:00:00]} 8. Bd2 {[%emt 0:00:05]} Bxc3 {[%emt 0:00:00]} 9. bxc3 {[%emt 0:00:03]} exd4 {[%emt 0:00:00]} 10. cxd4 {[%emt 0:00:09]} Nf6 {[%emt 0:00:14]} 11. Be2 {[%emt 0:04:18]} O-O {[%emt 0:00:30]} 12. Qb3 {[%emt 0:05:11]} Rfe8 {[%emt 0:01:58]} 13. Qxd5 {[%emt 0:04:24]} Nxd5 {[%emt 0:00:04]} 14. Rb1 {[%emt 0:02:01]} Re7 {[%emt 0:02:05]} 15. Kf1 {[%emt 0:06:11]} a6 {[%emt 0:14:33]} 16. Bd3 {[%emt 0:09:38]} Nb6 {[%emt 0:03:50]} 17. Kg2 {[%emt 0:02:22]} Rd8 {[%emt 0:01:40]} 18. Rhc1 {[%emt 0:00:50]} Re6 {[%emt 0:02:25]} 19. Be4 {[%emt 0:05:44]} g6 {[%emt 0:01:48]} 20. Rc5 {[%emt 0:03:45]} f5 {[%emt 0:03:47]} 21. Bc2 {[%emt 0:03:39]} Kf8 {[%emt 0:00:14]} 22. f4 {[%emt 0:02:53]} Ke8 {[%emt 0:03:45]} 23. a4 {[%emt 0:01:53]} Red6 {[%emt 0:01:10]} 24. Bb3 {[%emt 0:04:51]} Nd7 {[%emt 0:03:34]} 25. Rc2 {[%emt 0:02:02]} Nf6 {[%emt 0:00:33]} 26. Bc4 {[%emt 0:12:22]} Rb8 {[%emt 0:00:08]} 27. Rcb2 {[%emt 0:01:20]} Nd8 {[%emt 0:00:42]} 28. Bb4 {[%emt 0:03:11]} Rc6 {[%emt 0:00:44]} 29. Ba2 {[%emt 0:00:27]} Nd7 {[%emt 0:09:12]} 30. f3 {[%emt 0:03:44]} b5 {[%emt 0:04:40]} 31. a5 {[%emt 0:05:03]} Rf6 {[%emt 0:00:29]} 32. Rc2 {[%emt 0:01:35]} Rc6 {[%emt 0:03:36]} 33. Rbc1 {[%emt 0:00:34]} Rxc2+ {[%emt 0:00:04]} 34. Rxc2 {[%emt 0:00:03]} c5 35. dxc5 {[%emt 0:05:23]} Nc6 {[%emt 0:00:17]} 36. Be1 {[%emt 0:00:05]} Kd8 {[%emt 0:01:38]} 37. e4 {[%emt 0:01:23]} b4 {[%emt 0:00:48]} 38. Bd5 {[%emt 0:07:24]} Kc7 {[%emt 0:00:03]} 39. Rb2 {[%emt 0:01:04]} Nxc5 {[%emt 0:00:08]} 40. Bf2 {[%emt 0:00:10]} Na4 {[%emt 0:03:17]} 41. Rc2 {[%emt 0:30:37]} Nc3 {[%emt 0:30:02]} 42. Be1 {[%emt 0:00:00]} Nd4 {[%emt 0:00:00]} 43. Bxc3 {[%emt 0:00:00]} bxc3 {[%emt 0:00:00]} 44. Rxc3+ {[%emt 0:00:00]} Kd6 {[%emt 0:00:00]} 45. Rc4 {[%emt 0:00:00]} Rb2+ {[%emt 0:00:00]} 46. Kh3 {[%emt 0:00:00]} Ne2 {[%emt 0:00:00]} 47. Rc6+ {[%emt 0:00:00]} Kd7 {[%emt 0:00:00]} 48. Kh4 {[%emt 0:00:00]} fxe4 {[%emt 0:00:00]} 49. Bxe4 {[%emt 0:00:05]} Nxf4 {[%emt 0:00:00]} 50. Kg5 {[%emt 0:01:05]} Ne6+ {[%emt 0:00:00]} 51. Kf6 {[%emt 0:00:05]} Nc7 {[%emt 0:00:00]} 52. Rb6 {[%emt 0:00:59]} Rxh2 {[%emt 0:00:00]} 53. Bc6+ {[%emt 0:00:06]} Kc8 {[%emt 0:00:00]} 54. Bb7+ {[%emt 0:00:04]} Kd7 {[%emt 0:00:00]} 55. Bc6+ {[%emt 0:00:05]} 1/2-1/2

[Event "Marienbad Open-A1 2019"]
[Site "Marianske Lazne"]
[Date "2019.01.25"]
[Round "8"]
[White "Simek, Petr"]
[Black "Voloshin, Leonid"]
[Result "0-1"]
[ECO "D30"]
[WhiteElo "2330"]
[BlackElo "2381"]
[Annotator "NA"]
[PlyCount "110"]
[EventDate "2019.01.17"]
[EventType "tourn"]
[EventCountry "CZE"]
[SourceTitle "playchess.com"]
[Source "ChessBase"]
[SourceQuality "1"]
[TimeControl "40/5400+30:1800+30"]

1. d4 {[%emt 0:00:00]} d5 {[%emt 0:00:00]} 2. c4 {[%emt 0:00:00]} e6 {[%emt 0:00:00]} 3. Nf3 {[%emt 0:00:00]} c6 {[%emt 0:02:27]} 4. g3 {[%emt 0:03:58]} Bd6 {[%emt 0:04:23]} 5. Bg2 {[%emt 0:00:20]} f5 {[%emt 0:00:06]} 6. O-O {[%emt 0:01:07]} Nf6 {[%emt 0:00:04]} 7. Qc2 {[%emt 0:00:17]} O-O {[%emt 0:00:14]} 8. Nc3 {[%emt 0:00:05]} Qe7 {[%emt 0:03:29]} 9. Rb1 {[%emt 0:01:14]} Ne4 {[%emt 0:05:22]} 10. b4 {[%emt 0:01:57]} a6 {[%emt 0:04:36]} 11. a4 {[%emt 0:01:45]} Bd7 {[%emt 0:14:02]} 12. b5 {[%emt 0:08:45]} axb5 {[%emt 0:07:11]} 13. axb5 {[%emt 0:00:06]} Nxc3 {[%emt 0:17:26]} 14. Qxc3 {[%emt 0:00:07]} dxc4 {[%emt 0:00:03]} 15. b6 {[%emt 0:06:58]} Be8 {[%emt 0:11:47]} 16. Bg5 {[%emt 0:04:49]} Qf7 {[%emt 0:01:27]} 17. Qxc4 {[%emt 0:00:13]} Nd7 {[%emt 0:01:02]} 18. Bf4 {[%emt 0:01:14]} Bxf4 {[%emt 0:01:12]} 19. gxf4 {[%emt 0:00:16]} Qe7 {[%emt 0:00:55]} 20. Rb3 {[%emt 0:04:13]} Bf7 {[%emt 0:00:24]} 21. Qb4 {[%emt 0:12:00]} Qxb4 {[%emt 0:01:41]} 22. Rxb4 {[%emt 0:04:13]} Bh5 {[%emt 0:00:46]} 23. Rb2 {[%emt 0:07:28]} Bxf3 {[%emt 0:00:52]} 24. Bxf3 {[%emt 0:00:05]} Ra4 {[%emt 0:02:40]} 25. e3 {[%emt 0:00:33]} Rfa8 {[%emt 0:00:37]} 26. Rfb1 {[%emt 0:02:26]} Kf7 {[%emt 0:01:03]} 27. Kg2 {[%emt 0:00:39]} Ra1 {[%emt 0:02:26]} 28. Rxa1 {[%emt 0:02:52]} Rxa1 {[%emt 0:00:05]} 29. Be2 {[%emt 0:00:30]} Ke7 {[%emt 0:00:27]} 30. Bc4 {[%emt 0:01:04]} Ra4 {[%emt 0:01:25]} 31. Be2 {[%emt 0:01:56]} Kd6 {[%emt 0:00:35]} 32. h4 {[%emt 0:01:19]} Nf6 {[%emt 0:01:54]} 33. Bd1 {[%emt 0:00:28]} Ra5 {[%emt 0:02:23]} 34. Bf3 {[%emt 0:00:20]} Nd7 {[%emt 0:06:16]} 35. Be2 {[%emt 0:00:26]} Nf6 {[%emt 0:00:30]} 36. Bf3 {[%emt 0:00:08]} Nd5 {[%emt 0:04:08]} 37. Bxd5 {[%emt 0:01:50]} exd5 {[%emt 0:01:22]} 38. Rb1 {[%emt 0:02:13]} Rb5 {[%emt 0:01:22]} 39. Ra1 {[%emt 0:00:04]} c5 {[%emt 0:01:48]} 40. dxc5+ {[%emt 0:00:35]} Kxc5 {[%emt 0:00:01]} 41. Rc1+ {[%emt 0:30:35]} Kxb6 {[%emt 0:30:10]} 42. Rc8 {[%emt 0:00:12]} Rc5 {[%emt 0:00:00]} 43. Rg8 {[%emt 0:00:00]} Rc7 {[%emt 0:00:00]} 44. Kf3 {[%emt 0:00:00]} Kc5 {[%emt 0:00:00]} 45. Ke2 {[%emt 0:00:00]} Kc4 {[%emt 0:00:00]} 46. Rf8 {[%emt 0:00:00]} b5 {[%emt 0:00:00]} 47. Rxf5 {[%emt 0:00:00]} b4 {[%emt 0:00:00]} 48. Rf8 {[%emt 0:00:00]} b3 {[%emt 0:00:00]} 49. Kd2 {[%emt 0:00:00]} Kb4 {[%emt 0:00:00]} 50. Rb8+ {[%emt 0:00:00]} Ka3 {[%emt 0:00:00]} 51. Kd3 {[%emt 0:00:00]} Rc4 {[%emt 0:00:00]} 52. f3 {[%emt 0:00:00]} b2 {[%emt 0:00:00]} 53. e4 {[%emt 0:00:00]} Rb4 {[%emt 0:00:00]} 54. Rxb4 {[%emt 0:00:00]} Kxb4 {[%emt 0:00:00]} 55. Kc2 {[%emt 0:00:00]} Ka3 {[%emt 0:00:00]} 0-1

[Event "Marienbad Open-A1 2019"]
[Site "Marianske Lazne"]
[Date "2019.01.26"]
[Round "9"]
[White "Chernyshov, Konstantin"]
[Black "Plat, Vojtech"]
[Result "0-1"]
[ECO "C41"]
[WhiteElo "2500"]
[BlackElo "2552"]
[Annotator "ChessBase"]
[PlyCount "176"]
[EventDate "2019.01.17"]
[EventType "tourn"]
[EventCountry "CZE"]
[SourceTitle "playchess.com"]
[Source "ChessBase"]
[SourceQuality "1"]
[TimeControl "40/5400+30:1800+30"]

1. d4 {[%emt 0:00:00]} d6 {[%emt 0:00:00]} 2. Nc3 {[%emt 0:00:17]} Nf6 {[%emt 0:00:00]} 3. e4 {[%emt 0:00:44]} e5 {[%emt 0:00:00]} 4. Nf3 {[%emt 0:01:41]} Nbd7 {[%emt 0:00:00]} 5. g3 {[%emt 0:01:24]} Be7 {[%emt 0:04:30]} 6. Bg2 {[%emt 0:01:07]} c6 {[%emt 0:00:04]} 7. O-O {[%emt 0:00:29]} O-O {[%emt 0:00:04]} 8. Re1 {[%emt 0:01:28]} b5 {[%emt 0:00:06]} 9. b3 {[%emt 0:00:53]} Bb7 {[%emt 0:00:34]} 10. Bb2 {[%emt 0:00:28]} Qc7 {[%emt 0:00:13]} 11. a4 {[%emt 0:06:06]} a6 {[%emt 0:00:20]} 12. Qd2 {[%emt 0:01:18]} Rfe8 {[%emt 0:00:14]} 13. Rad1 {[%emt 0:00:58]} Bf8 {[%emt 0:00:06]} 14. Qc1 {[%emt 0:07:09]} g6 {[%emt 0:03:57]} 15. axb5 {[%emt 0:08:02]} axb5 {[%emt 0:00:05]} 16. Nb1 {[%emt 0:01:06]} Bg7 {[%emt 0:00:59]} 17. c4 {[%emt 0:08:44]} bxc4 {[%emt 0:00:14]} 18. dxe5 {[%emt 0:00:24]} dxe5 {[%emt 0:04:01]} 19. Qxc4 {[%emt 0:02:33]} Ra2 {[%emt 0:00:30]} 20. Qc2 Nc5 {[%emt 0:02:37]} 21. Nc3 {[%emt 0:02:46]} Raa8 {[%emt 0:00:13]} 22. b4 {[%emt 0:14:52]} Na6 {[%emt 0:03:38]} 23. Ba3 Bf8 {[%emt 0:02:07]} 24. Rb1 {[%emt 0:07:08]} c5 {[%emt 0:00:35]} 25. bxc5 {[%emt 0:00:37]} Nxc5 {[%emt 0:00:30]} 26. Nb5 {[%emt 0:00:30]} Qc8 {[%emt 0:00:30]} 27. Nd2 {[%emt 0:07:50]} Ba6 {[%emt 0:19:19]} 28. Nc4 {[%emt 0:01:09]} Bxb5 {[%emt 0:01:25]} 29. Rxb5 {[%emt 0:00:50]} Ne6 {[%emt 0:00:30]} 30. Bb2 Ra2 {[%emt 0:01:57]} 31. Qb3 {[%emt 0:06:35]} Rxb2 {[%emt 0:00:05]} 32. Nxb2 {[%emt 0:00:04]} Nd4 {[%emt 0:00:05]} 33. Qd3 {[%emt 0:00:26]} Nxb5 {[%emt 0:04:16]} 34. Qxb5 {[%emt 0:02:12]} Qc3 {[%emt 0:02:07]} 35. Qe2 Rb8 {[%emt 0:00:04]} 36. Nd3 {[%emt 0:01:43]} Rd8 {[%emt 0:00:08]} 37. Rd1 {[%emt 0:00:54]} Rd4 {[%emt 0:02:59]} 38. h3 {[%emt 0:06:40]} Kg7 {[%emt 0:01:18]} 39. Kh2 {[%emt 0:03:45]} Qc4 {[%emt 0:07:05]} 40. Qe3 {[%emt 0:02:32]} Qc2 {[%emt 0:00:33]} 41. Rd2 {[%emt 0:05:41]} Qc3 {[%emt 0:03:28]} 42. Rd1 {[%emt 0:02:29]} Bd6 {[%emt 0:03:02]} 43. Bf3 {[%emt 0:03:06]} Qc4 {[%emt 0:01:48]} 44. Kg2 {[%emt 0:01:08]} Qa4 {[%emt 0:01:18]} 45. Qe2 {[%emt 0:02:54]} Qa3 46. Ne1 Rxd1 {[%emt 0:01:04]} 47. Qxd1 {[%emt 0:00:35]} Bc5 {[%emt 0:00:08]} 48. Nd3 {[%emt 0:01:06]} Bd4 {[%emt 0:00:04]} 49. Qc2 {[%emt 0:00:04]} Qa5 {[%emt 0:00:24]} 50. Nc1 {[%emt 0:00:44]} Ne8 {[%emt 0:00:45]} 51. Nb3 {[%emt 0:04:53]} Qb6 {[%emt 0:00:30]} 52. Nxd4 {[%emt 0:01:39]} Qxd4 {[%emt 0:01:15]} 53. Be2 Nd6 {[%emt 0:01:15]} 54. Bd3 {[%emt 0:01:39]} Nb7 {[%emt 0:00:13]} 55. Qc4 {[%emt 0:01:56]} Qd6 {[%emt 0:00:32]} 56. Bc2 {[%emt 0:00:44]} Nc5 {[%emt 0:00:30]} 57. Bb3 {[%emt 0:00:36]} Ne6 {[%emt 0:00:51]} 58. Qd5 {[%emt 0:00:30]} Qc7 {[%emt 0:00:04]} 59. Bc4 g5 {[%emt 0:01:14]} 60. Bb3 {[%emt 0:03:54]} Nd4 {[%emt 0:00:44]} 61. Bc4 {[%emt 0:00:27]} h6 {[%emt 0:01:07]} 62. Ba2 {[%emt 0:00:42]} Ne6 {[%emt 0:00:39]} 63. Qc4 {[%emt 0:00:56]} Qe7 {[%emt 0:00:13]} 64. Qd5 Qf6 {[%emt 0:00:05]} 65. Bc4 {[%emt 0:05:44]} Nd4 {[%emt 0:00:11]} 66. Kg1 {[%emt 0:00:10]} h5 {[%emt 0:00:41]} 67. Qd7 {[%emt 0:00:46]} h4 {[%emt 0:00:18]} 68. g4 {[%emt 0:01:34]} Qf4 {[%emt 0:00:27]} 69. Qd5 {[%emt 0:01:38]} Nf3+ {[%emt 0:00:35]} 70. Kg2 {[%emt 0:00:15]} Nd2 {[%emt 0:00:14]} 71. Bd3 {[%emt 0:00:15]} Kh6 {[%emt 0:04:37]} 72. Qd6+ {[%emt 0:00:18]} Kh7 {[%emt 0:00:10]} 73. Qd7 {[%emt 0:00:12]} Qf3+ {[%emt 0:01:38]} 74. Kg1 {[%emt 0:00:10]} Kg7 {[%emt 0:00:13]} 75. Qd5 {[%emt 0:00:07]} Qf6 {[%emt 0:01:08]} 76. Be2 {[%emt 0:01:03]} Qf4 {[%emt 0:00:05]} 77. Bd3 {[%emt 0:00:10]} Nf3+ {[%emt 0:02:34]} 78. Kg2 {[%emt 0:00:09]} Nd4 {[%emt 0:00:09]} 79. Bc4 {[%emt 0:00:10]} Qf6 {[%emt 0:01:48]} 80. Qd7 {[%emt 0:00:54]} Qf3+ {[%emt 0:00:08]} 81. Kg1 {[%emt 0:00:12]} Qf4 {[%emt 0:00:09]} 82. Qd5 {[%emt 0:00:23]} Ne6 {[%emt 0:00:30]} 83. Kg2 {[%emt 0:00:48]} Qf6 {[%emt 0:00:06]} 84. Qd7 {[%emt 0:00:16]} Nf4+ {[%emt 0:00:12]} 85. Kh2 {[%emt 0:00:06]} Nxh3 {[%emt 0:00:34]} 86. Kxh3 {[%emt 0:01:01]} Qf3+ {[%emt 0:00:33]} 87. Kh2 {[%emt 0:00:05]} Qxf2+ {[%emt 0:00:02]} 88. Kh1 {[%emt 0:00:08]} h3 {[%emt 0:00:35]} 0-1

[Event "Marienbad Open-A1 2019"]
[Site "Marianske Lazne"]
[Date "2019.01.26"]
[Round "9"]
[White "Makarian, Rudik"]
[Black "Ajay Krishna, S."]
[Result "1/2-1/2"]
[ECO "A37"]
[WhiteElo "2354"]
[BlackElo "2289"]
[Annotator "NA"]
[PlyCount "67"]
[EventDate "2019.01.17"]
[EventType "tourn"]
[EventCountry "CZE"]
[SourceTitle "playchess.com"]
[Source "ChessBase"]
[SourceQuality "1"]
[TimeControl "40/5400+30:1800+30"]

1. Nf3 {[%emt 0:00:00]} c5 {[%emt 0:03:33]} 2. g3 {[%emt 0:00:00]} g6 {[%emt 0:00:07]} 3. Bg2 {[%emt 0:00:00]} Bg7 {[%emt 0:00:05]} 4. c4 {[%emt 0:00:00]} Nc6 {[%emt 0:00:04]} 5. Nc3 {[%emt 0:00:00]} e6 {[%emt 0:00:42]} 6. d4 {[%emt 0:00:00]} Nxd4 {[%emt 0:01:53]} 7. Nxd4 {[%emt 0:00:00]} cxd4 {[%emt 0:00:02]} 8. Ne4 {[%emt 0:00:00]} Qc7 {[%emt 0:08:41]} 9. c5 {[%emt 0:22:06]} Ne7 {[%emt 0:17:25]} 10. Bf4 {[%emt 0:00:58]} Qa5+ {[%emt 0:04:16]} 11. Bd2 {[%emt 0:11:32]} Qc7 {[%emt 0:03:38]} 12. Nd6+ {[%emt 0:17:00]} Kf8 {[%emt 0:00:06]} 13. Rc1 {[%emt 0:00:37]} Nf5 {[%emt 0:01:57]} 14. Qb3 {[%emt 0:06:20]} Kg8 {[%emt 0:00:36]} 15. Bf4 {[%emt 0:03:28]} Qa5+ {[%emt 0:03:08]} 16. Bd2 {[%emt 0:00:06]} Qc7 {[%emt 0:00:06]} 17. O-O {[%emt 0:04:05]} Be5 {[%emt 0:10:54]} 18. Nc4 {[%emt 0:09:01]} Bf6 {[%emt 0:04:25]} 19. Ba5 {[%emt 0:02:14]} Qxc5 {[%emt 0:03:53]} 20. Bb4 {[%emt 0:01:38]} Qb5 {[%emt 0:00:46]} 21. g4 {[%emt 0:00:17]} Be7 {[%emt 0:01:09]} 22. Bxe7 {[%emt 0:07:23]} Qxb3 {[%emt 0:00:12]} 23. gxf5 {[%emt 0:00:08]} Qxa2 {[%emt 0:01:23]} 24. Nd6 {[%emt 0:00:22]} exf5 {[%emt 0:02:04]} 25. Rc4 {[%emt 0:06:17]} Kg7 {[%emt 0:01:13]} 26. Bd5 {[%emt 0:01:26]} f6 {[%emt 0:05:45]} 27. Kh1 {[%emt 0:01:38]} h5 {[%emt 0:06:14]} 28. Rg1 {[%emt 0:01:26]} Qxb2 {[%emt 0:02:18]} 29. Nxf5+ {[%emt 0:01:47]} Kh7 {[%emt 0:00:02]} 30. Bf7 {[%emt 0:00:50]} gxf5 {[%emt 0:01:07]} 31. Bxf6 {[%emt 0:00:27]} Rf8 {[%emt 0:03:36]} 32. Rg7+ {[%emt 0:00:58]} Kh6 {[%emt 0:00:03]} 33. Rg6+ {[%emt 0:00:31]} Kh7 {[%emt 0:00:01]} 34. Rg7+ {[%emt 0:00:37]} 1/2-1/2